Workbook

Sheet OneVarMCSim (hidden)
A1: Results of Monte Carlo Simulation | AK1: 0 | AL1: 0
A2: Sample Number | F2: Simulation Stats | AH2: 0 | AK2: 0 | AL2: 0
A3: 1 | G3: repetitions | AH3: 0.1290322542 | AI3: 0 | AK3: 0.1290322542 | AL3: 0
A4: 2 | G4: seconds | I4: Summary Statistics | L4: Notes | AH4: 0.2580645084 | AI4: 3 | AK4: 0.1290322542 | AL4: 3
A5: 3 | I5: Average | J5: 1.16710423 | AH5: 0.3870967627 | AI5: 4 | AK5: 0.2580645084 | AL5: 3
A6: 4 | I6: SD | J6: 0.5760398821 | AH6: 0.5161290169 | AI6: 8 | AK6: 0.2580645084 | AL6: 4
A7: 5 | I7: Max | J7: 2.5793023 | AH7: 0.6451612711 | AI7: 4 | AK7: 0.3870967627 | AL7: 4
A8: 6 | I8: Min | J8: 0.2134278418 | AH8: 0.7741935253 | AI8: 9 | AK8: 0.3870967627 | AL8: 8
A9: 7 | AH9: 0.9032257795 | AI9: 9 | AK9: 0.5161290169 | AL9: 8
A10: 8 | AH10: 1.032258034 | AI10: 12 | AK10: 0.5161290169 | AL10: 4
A11: 9 | AH11: 1.161290288 | AI11: 8 | AK11: 0.6451612711 | AL11: 4
A12: 10 | AH12: 1.290322542 | AI12: 3 | AK12: 0.6451612711 | AL12: 9
A13: 11 | AH13: 1.419354796 | AI13: 6 | AK13: 0.7741935253 | AL13: 9
A14: 12 | AH14: 1.548387051 | AI14: 7 | AK14: 0.7741935253 | AL14: 9
A15: 13 | AH15: 1.677419305 | AI15: 6 | AK15: 0.9032257795 | AL15: 9
A16: 14 | AH16: 1.806451559 | AI16: 6 | AK16: 0.9032257795 | AL16: 12
A17: 15 | AH17: 1.935483813 | AI17: 2 | AK17: 1.032258034 | AL17: 12
A18: 16 | AH18: 2.064516068 | AI18: 5 | AK18: 1.032258034 | AL18: 8
A19: 17 | AH19: 2.193548322 | AI19: 2 | AK19: 1.161290288 | AL19: 8
A20: 18 | AH20: 2.322580576 | AI20: 3 | AK20: 1.161290288 | AL20: 3
A21: 19 | AH21: 2.45161283 | AI21: 2 | AK21: 1.290322542 | AL21: 3
A22: 20 | AH22: 2.580645084 | AI22: 1 | AK22: 1.290322542 | AL22: 6
A23: 21 | AH23: 2.709677339 | AI23: 0 | AK23: 1.419354796 | AL23: 6
A24: 22 | AH24: 2.838709593 | AI24: 0 | AK24: 1.419354796 | AL24: 7
A25: 23 | AH25: 2.967741847 | AI25: 0 | AK25: 1.548387051 | AL25: 7
A26: 24 | AH26: 3.096774101 | AI26: 0 | AK26: 1.548387051 | AL26: 6
A27: 25 | AH27: 3.225806355 | AI27: 0 | AK27: 1.677419305 | AL27: 6
A28: 26 | AH28: 3.35483861 | AI28: 0 | AK28: 1.677419305 | AL28: 6
A29: 27 | AH29: 3.483870864 | AI29: 0 | AK29: 1.806451559 | AL29: 6
A30: 28 | AH30: 3.612903118 | AI30: 0 | AK30: 1.806451559 | AL30: 2
A31: 29 | AH31: 3.741935372 | AI31: 0 | AK31: 1.935483813 | AL31: 2
A32: 30 | AH32: 3.870967627 | AI32: 0 | AK32: 1.935483813 | AL32: 5
A33: 31 | AH33: 3.999999881 | AI33: 0 | AK33: 2.064516068 | AL33: 5
A34: 32 | AK34: 2.064516068 | AL34: 2
A35: 33 | AK35: 2.193548322 | AL35: 2
A36: 34 | AK36: 2.193548322 | AL36: 3
A37: 35 | AK37: 2.322580576 | AL37: 3
A38: 36 | AK38: 2.322580576 | AL38: 2
A39: 37 | AK39: 2.45161283 | AL39: 2
A40: 38 | AK40: 2.45161283 | AL40: 1
A41: 39 | AK41: 2.580645084 | AL41: 1
A42: 40 | AK42: 2.580645084 | AL42: 0
A43: 41 | AK43: 2.709677339 | AL43: 0
A44: 42 | AK44: 2.709677339 | AL44: 0
A45: 43 | AK45: 2.838709593 | AL45: 0
A46: 44 | AK46: 2.838709593 | AL46: 0
A47: 45 | AK47: 2.967741847 | AL47: 0
A48: 46 | AK48: 2.967741847 | AL48: 0
A49: 47 | AK49: 3.096774101 | AL49: 0
A50: 48 | AK50: 3.096774101 | AL50: 0
A51: 49 | AK51: 3.225806355 | AL51: 0
A52: 50 | AK52: 3.225806355 | AL52: 0
A53: 51 | AK53: 3.35483861 | AL53: 0
A54: 52 | AK54: 3.35483861 | AL54: 0
A55: 53 | AK55: 3.483870864 | AL55: 0
A56: 54 | AK56: 3.483870864 | AL56: 0
A57: 55 | AK57: 3.612903118 | AL57: 0
A58: 56 | AK58: 3.612903118 | AL58: 0
A59: 57 | AK59: 3.741935372 | AL59: 0
A60: 58 | AK60: 3.741935372 | AL60: 0
A61: 59 | AK61: 3.870967627 | AL61: 0
A62: 60 | AK62: 3.870967627 | AL62: 0
A63: 61 | AK63: 3.999999881 | AL63: 0
A64: 62 | AK64: 3.999999881 | AL64: 0
A65: 63
A66: 64
A67: 65
A68: 66
A69: 67
A70: 68
A71: 69
A72: 70
A73: 71
A74: 72
A75: 73
A76: 74
A77: 75
A78: 76
A79: 77
A80: 78
A81: 79
A82: 80
A83: 81
A84: 82
A85: 83
A86: 84
A87: 85
A88: 86
A89: 87
A90: 88
A91: 89
A92: 90
A93: 91
A94: 92
A95: 93
A96: 94
A97: 95
A98: 96
A99: 97
A100: 98
A101: 99
A102: 100
A103: Only the first 100 repetitions are displayed on this worksheet.

Sheet TwoVarMCSim (hidden)
A1: Results of Monte Carlo Simulation
A2: Sample Number | B2: Var1 | C2: Var2 | F2: Simulation Stats
A3: 1 | G3: repetitions
A4: 2 | G4: secs | I4: Var1 | K4: Var2 | M4: Notes
A5: 3 | I5: Average | J5: 0.003891987077 | K5: Average | L5: 0.003355620617
A6: 4 | I6: SD | J6: 0.1659865299 | K6: SD | L6: 0.1488266145
A7: 5 | I7: Max | J7: 0.5008107016 | K7: Max | L7: 0.4001902531
A8: 6 | I8: Min | J8: -0.5496349566 | K8: Min | L8: -0.4673416415
A9: 7
A10: 8
A11: 9
A12: 10
A13: 11
A14: 12
A15: 13
A16: 14
A17: 15
A18: 16
A19: 17 | F19: 1
A20: 18
A21: 19
A22: 20
A23: 21
A24: 22
A25: 23
A26: 24
A27: 25
A28: 26
A29: 27
A30: 28
A31: 29
A32: 30
A33: 31
A34: 32
A35: 33
A36: 34
A37: 35
A38: 36
A39: 37
A40: 38
A41: 39
A42: 40
A43: 41
A44: 42
A45: 43
A46: 44
A47: 45
A48: 46
A49: 47
A50: 48
A51: 49
A52: 50
A53: 51
A54: 52
A55: 53
A56: 54
A57: 55
A58: 56
A59: 57
A60: 58
A61: 59
A62: 60
A63: 61
A64: 62
A65: 63
A66: 64
A67: 65
A68: 66
A69: 67
A70: 68
A71: 69
A72: 70
A73: 71
A74: 72
A75: 73
A76: 74
A77: 75
A78: 76
A79: 77
A80: 78
A81: 79
A82: 80
A83: 81
A84: 82
A85: 83
A86: 84
A87: 85
A88: 86
A89: 87
A90: 88
A91: 89
A92: 90
A93: 91
A94: 92
A95: 93
A96: 94
A97: 95
A98: 96
A99: 97
A100: 98
A101: 99
A102: 100
A103: Only the first 100 repetitions are displayed on this worksheet.

Sheet Intro
A1: This workbook illustrates how within-cluster correlation in a complex survey affects OLS standard errors.
A3: Paper: | B3: Barreto and Raghav, "Understanding and Teaching Within-Cluster Correlation in Complex Surveys"
A6: This workbook contains Visual Basic code for four array functions:
A7: 1) MULTIVARNORMAL(n, CorrRange, MeanRange, SDRange) produces an n x 1 vector of normally distributed random variables with given correlation matrix, means and SDs
A8: 2) LINESTR(YRange, XRange, InterceptOption, DFOption) computes least squares estimates with robust SEs; analagous to Excel's built-in LINEST array function
A9: 3) LINESTW(YRange, XRange, WeightRange, ClusterRange, StrataRange) computes least squares estimates with cluster SEs
A10: 4) OLSEXACTSE(YRange, XRange, WeightRange, ClusterRange, Rho, SigmaRange) computes exact OLS SE given rho and error dispersion
B11: Rho is the within-cluster error correlation; a value from -1 to 1.
B12: SigmaRange is the SD of the errors in each cluster.
A14: You must enable macros for these functions to work.
A16: All four functions and matrix formulas used in this workbook are Excel array functions.
A17: Instead of Enter, array functions require input via Ctrl-Shift-Enter. Click Esc to exit an array function without making any changes.
A19: MULTIVARNORMAL and Monte Carlo simulation code in this workbook is from Barreto and Howland's MCSim.xla Excel add-in:
A20: http://www.wabash.edu/econometrics/EconometricsBook/Basic%20Tools/ExcelAddIns/MCSim.htm
A21: LINESTR was adapted from OLSREG function in Barreto and Howland's OLSRegression.xla Excel add-in:
A22: http://www3.wabash.edu/econometrics/EconometricsBook/Basic%20Tools/ExcelAddIns/OLSRegression.htm
A24: If the functions or buttons do not work, please be sure to enable macros.
A25: "Means array" error on open is due to a conflict with the MCSim add-in. Please uninstall the MCSim add-in when using this workbook.
A27: Contact Information:
A28: Humberto Barreto
A29: hbarreto@depauw.edu
A30: Manu Raghav
A31: manuraghav@depauw.edu

Sheet DGP
A1: This sheet uses a tiny data set to illustrate the model. It shows all calculations. Click on cells to see the formulas. Pres Esc key to get out of array function cells.
A3: b0 | B3: 0 | F3: Red text = unobserved | AC3: Color-coding scheme
A4: b1 | B4: 2 | F4: Change yellow-backgrounded cells. | AC4: Orange | AD4: Classic SE (LINEST) | AF4: Press F9
F5: Press F9 to recalculate the sheet. | AC5: Blue | AD5: Robust SE (LINESTR)
A6: n | B6: 6 | C6: Total number of obs | F6: Pay attention to what bounces and what stays constant. | M6: 4 | AC6: Green | AD6: Cluster SE (LINESTW)
A7: c | B7: 3 | C7: Number of clusters | F7: re | G7: 0 | AF7: OLS coefficient estimates (b) produce
A8: nc | B8: 2 | C8: Number of obs in each cluster | F8: Avg e | G8: 0 | H8: =G8 -> 0 | I8: 0 | J8: =I8 -> 0 | K8: 0 | L8: =K8 -> 0 | AF8: Predicted Y (Y-hat) and residuals (e):
F9: se | G9: 7 | H9: =G9 -> 7 | I9: 7 | J9: =I9 -> 7 | K9: 7 | L9: =K9 -> 7 | AU9: Classic SE | AX9: Robust SE | BE9: Robust SE | BK9: Cluster SE | BP9: Exact SE
A10: Intercept | B10: X | C10: C1 | D10: C2 | E10: C3 | F10: Cluster ID | G10: Obs 1 | H10: Obs 2 | I10: Obs 3 | J10: Obs 4 | K10: Obs 5 | L10: Obs 6 | M10: epsilon (e) | N10: Y | AC10: LINEST | AF10: Predicted Y (Y-hat) | AG10: residuals (e) | AU10: (X'X)-1 | AX10: Omega-hat | BE10: Obs 1 | BK10: Cluster 1 | BP10: Cluster 1
A11: 1 | B11: 7.921575009 | C11: 1 | D11: 0 | E11: 0 | F11: 1 | G11: 1 | H11: =G7 -> 0 | I11: 0 | J11: 0 | K11: 0 | L11: 0 | M11: =multivarnormal(2,G11:H12,G8:H8,G9:H9) -> 4.687483585 | N11: =$B$3+$B$4*B11+M11 -> 20.5306336 | AB11: OLS b | AC11: =LINEST(N11:N16,B11:B16,1,1) -> 2.292352072 | AD11: -4.64513987 | AF11: =$AD$11+$AC$11*B11 -> 13.51389902 | AG11: =N11-($AD$11+$AC$11*B11) -> 7.016734585 | AU11: =MINVERSE(MMULT(TRANSPOSE(A11:B16),A11:B16)) -> 1.175611775 | AV11: -0.07767047998 | AX11: =AG11^2 -> 49.23456424 | AY11: 0 | AZ11: 0 | BA11: 0 | BB11: 0 | BC11: 0 | BE11: x'e' | BF11: ex | BH11: x'e'ex | BK11: sum x'e' | BM11: sum ex | BP11: X' | BS11: X'X | BV11: Omega
A12: 1 | B12: 4.726960864 | C12: 1 | D12: 0 | E12: 0 | F12: 1 | G12: =G7 -> 0 | H12: 1 | I12: 0 | J12: 0 | K12: 0 | L12: 0 | M12: -10.53154611 | N12: -1.077624381 | AB12: Classic SE | AC12: 0.5398924948 | AD12: 7.570368752 | AF12: =$AD$11+$AC$11*B12 -> 6.190718662 | AG12: -7.268343043 | AU12: -0.07767047998 | AV12: 0.005979218702 | AX12: 0 | AY12: =AG12^2 -> 52.82881059 | AZ12: 0 | BA12: 0 | BB12: 0 | BC12: 0 | BE12: =MMULT(TRANSPOSE(A11:B11),AG11) -> 7.016734585 | BF12: =MMULT(AG11,A11:B11) -> 7.016734585 | BG12: 55.58358934 | BH12: =MMULT(BE12:BE13,BF12:BG12) -> 49.23456424 | BI12: 390.0152937 | BK12: =BE12+BE17 -> -0.2516084577 | BM12: =BF12+BF17 -> -0.2516084577 | BN12: =BG12+BG17 -> 21.22641623 | BP12: =TRANSPOSE(A11:B12) -> 1 | BQ12: 1 | BS12: =MMULT(TRANSPOSE(A11:B12),A11:B12) -> 2 | BT12: 12.64853587 | BV12: =G9^2 -> 49 | BW12: 0
A13: 1 | B13: 14.75072345 | C13: 0 | D13: 1 | E13: 0 | F13: 2 | G13: 0 | H13: 0 | I13: 1 | J13: =G7 -> 0 | K13: 0 | L13: 0 | M13: =multivarnormal(2,I13:J14,I8:J8,I9:J9) -> 7.758374261 | N13: 37.25982115 | AB13: R2 | AC13: 0.8184131034 | AD13: 6.982084023 | AE13: RMSE | AF13: 29.16871159 | AG13: 8.091109564 | AX13: 0 | AY13: 0 | AZ13: =AG13^2 -> 65.46605398 | BA13: 0 | BB13: 0 | BC13: 0 | BE13: 55.58358934 | BH13: 390.0152937 | BI13: 3089.535404 | BK13: =BE13+BE18 -> 21.22641623 | BP13: 7.921575009 | BQ13: 4.726960864 | BS13: 12.64853587 | BT13: 85.09550964 | BV13: 0 | BW13: =H9^2 -> 49
A14: 1 | B14: 12.72456179 | C14: 0 | D14: 1 | E14: 0 | F14: 2 | G14: 0 | H14: 0 | I14: =G7 -> 0 | J14: 1 | K14: 0 | L14: 0 | M14: -2.243946187 | N14: 23.20517739 | AB14: F stat | AC14: 18.02802115 | AD14: 4 | AE14: df | AF14: 24.52403572 | AG14: -1.318858324 | AU14: Scroll down to see | AX14: 0 | AY14: 0 | AZ14: 0 | BA14: =AG14^2 -> 1.73938728 | BB14: 0 | BC14: 0
A15: 1 | B15: 19.07551405 | C15: 0 | D15: 0 | E15: 1 | F15: 3 | G15: 0 | H15: 0 | I15: 0 | J15: 0 | K15: 1 | L15: =G7 -> 0 | M15: =multivarnormal(2,K15:L16,K8:L8,K9:L9) -> -3.823650377 | N15: 34.32737772 | AB15: RSS | AC15: 878.8569686 | AD15: 194.9979892 | AE15: SSR | AF15: 39.08265429 | AG15: -4.755276568 | AU15: Classic SE computation | AX15: 0 | AY15: 0 | AZ15: 0 | BA15: 0 | BB15: =AG15^2 -> 22.61265524 | BC15: 0 | BE15: Obs 2 | BK15: x'e'ex | BP15: Cluster 2
A16: 1 | B16: 18.74109537 | C16: 0 | D16: 0 | E16: 1 | F16: 3 | G16: 0 | H16: 0 | I16: 0 | J16: 0 | K16: =G7 -> 0 | L16: 1 | M16: -0.9315080177 | N16: 36.55068272 | AF16: 38.31604893 | AG16: -1.765366214 | AX16: 0 | AY16: 0 | AZ16: 0 | BA16: 0 | BB16: 0 | BC16: =AG16^2 -> 3.11651787 | BE16: x'e' | BF16: ex | BH16: x'e'ex | BK16: =MMULT(BK12:BK13,BM12:BN12) -> 0.06330681601 | BL16: -5.34074585 | BP16: X' | BS16: X'X | BV16: Omega
BE17: =MMULT(TRANSPOSE(A12:B12),AG12) -> -7.268343043 | BF17: =MMULT(AG12,A12:B12) -> -7.268343043 | BG17: -34.35717311 | BH17: =MMULT(BE17:BE18,BF17:BG17) -> 52.82881059 | BI17: 249.7197202 | BK17: -5.34074585 | BL17: 450.5607459 | BP17: =TRANSPOSE(A13:B14) -> 1 | BQ17: 1 | BS17: =MMULT(TRANSPOSE(A13:B14),A13:B14) -> 2 | BT17: 27.47528524 | BV17: =I9^2 -> 49 | BW17: 0
A18: Scroll down to set Xs. | AC18: LINESTR | BE18: -34.35717311 | BH18: 249.7197202 | BI18: 1180.415344 | BP18: 14.75072345 | BQ18: 12.72456179 | BS18: 27.47528524 | BT18: 379.4983149 | BV18: 0 | BW18: =J9^2 -> 49
AB19: OLS b | AC19: =LINESTR(N10:N16,B10:B16,1,1) -> 2.292352072 | AD19: -4.64513987 | BK19: Cluster 2
AB20: Robust SE | AC20: 0.5679688257 | AD20: 8.871563446 | AX20: Scroll down to see the Robust SE computation using the omega-hat matrix. | BE20: Obs 3 | BK20: sum x'e' | BM20: sum ex | BP20: Cluster 3
A21: To apply the set up above to your own example, enter the desired number of clusters and cluster size and click the Create Data button. | P21: Sample Corr of pairs of epsilons, (eci,ecj) | AB21: R2 | AC21: 0.8184131034 | AD21: 6.982084023 | AE21: RMSE | AX21: This shows the connection to the Classic SE which is based on an omega-hat | BE21: x'e' | BF21: ex | BH21: x'e'ex | BK21: =BE22+BE27 -> 6.77225124 | BM21: =BF22+BF27 -> 6.77225124 | BN21: =BG22+BG27 -> 102.5678253 | BP21: X' | BS21: X'X | BV21: Omega
C22: Number of clusters | D22: 25 | E22: 25 | P22: =M11 -> 4.687483585 | Q22: =M12 -> -10.53154611 | AX22: matrix with RMSE2 on the diagonal, thereby collapsing to the | BE22: =MMULT(TRANSPOSE(A13:B13),AG13) -> 8.091109564 | BF22: =MMULT(AG13,A13:B13) -> 8.091109564 | BG22: 119.3497196 | BH22: =MMULT(BE22:BE23,BF22:BG22) -> 65.46605398 | BI22: 965.6716574 | BK22: =BE23+BE28 -> 102.5678253 | BP22: =TRANSPOSE(A15:B16) -> 1 | BQ22: 1 | BS22: =MMULT(TRANSPOSE(A15:B16),A15:B16) -> 2 | BT22: 37.81660941 | BV22: =K9^2 -> 49 | BW22: 0
C23: Number of obs in each cluster | D23: 4 | P23: -10.53154611 | Q23: =M11 -> 4.687483585 | AX23: usual sigma-hat2 times (X'X)-1 formula. | BE23: 119.3497196 | BH23: 965.6716574 | BI23: 14244.35556 | BP23: 19.07551405 | BQ23: 18.74109537 | BS23: 37.81660941 | BT23: 715.1038917 | BV23: 0 | BW23: =L9^2 -> 49
A24: Note: the value of rho-epsilon (the within-cluster error correlation) in cell G7 is used -- change this as needed before clicking the Create Data button. | P24: 7.758374261 | Q24: =M14 -> -2.243946187 | AC24: LINESTW | BK24: x'e'ex
P25: -2.243946187 | Q25: =M13 -> 7.758374261 | AB25: OLS b | AC25: =linestw(N11:N16,B11:B16,A11:A16,F11:F16) -> 2.292352072 | AD25: -4.64513987 | AX25: To the right is an alternative (equivalent) form of the robust SE | BE25: Obs 4 | BK25: =MMULT(BK21:BK22,BM21:BN21) -> 45.86338685 | BL25: 694.6150821 | BS25: re | BT25: 0
P26: -3.823650377 | Q26: =M16 -> -0.9315080177 | AB26: Cluster SE | AC26: 0.3543243891 | AD26: 3.372201581 | AX26: via individual observations: | BE26: x'e' | BF26: ex | BH26: x'e'ex | BK26: 694.6150821 | BL26: 10520.15879 | BT26: 1
P27: -0.9315080177 | Q27: =M15 -> -3.823650377 | AB27: R2 | AC27: 0.8184131034 | AD27: 6.982084023 | AE27: RMSE | BE27: =MMULT(TRANSPOSE(A14:B14),AG14) -> -1.318858324 | BF27: =MMULT(AG14,A14:B14) -> -1.318858324 | BG27: -16.78189424 | BH27: =MMULT(BE27:BE28,BF27:BG27) -> 1.73938728 | BI27: 22.13294092
P28: rho-e | Q28: =CORREL(P22:P27,Q22:Q27) -> -0.6246632848 | BE28: -16.78189424 | BH28: 22.13294092 | BI28: 281.6319743 | BK28: Cluster 3 | BS28: Rho for clus 1 | BV28: X'OmegaRhoX for clus 1
AC29: Exact SE | AX29: This representation makes it easy to compare the robust and cluster SEs. | BK29: sum x'e' | BM29: sum ex | BS29: 1 | BT29: =BT25 -> 0 | BV29: =MMULT(MMULT(MMULT(BP12:BQ13,BV12:BW13),BS29:BT30),A11:B12) -> 98 | BW29: 619.7782578
AC30: =OLSEXACTSE(N11:N16,B11:B16,A11:A16,F11:F16,0,G9:L9) -> SE(b1) | AD30: SE(b0) | BE30: Obs 5 | BK30: =BE32+BE37 -> -6.520642782 | BM30: =BF32+BF37 -> -6.520642782 | BN30: =BG32+BG37 -> -123.7942415 | BS30: =BT25 -> 0 | BT30: 1 | BV30: 619.7782578 | BW30: 4169.679972
AC31: 0.5412778551 | AD31: 7.589794263 | BE31: x'e' | BF31: ex | BH31: x'e'ex | BK31: =BE33+BE38 -> -123.7942415
AC32: Rho Value | AD32: 0 | BE32: =MMULT(TRANSPOSE(A15:B15),AG15) -> -4.755276568 | BF32: =MMULT(AG15,A15:B15) -> -4.755276568 | BG32: -90.70934497 | BH32: =MMULT(BE32:BE33,BF32:BG32) -> 22.61265524 | BI32: 431.3480226 | BS32: Rho for clus 2 | BV32: X'OmegaRhoX for clus 2
AX33: Robust SE | BE33: -90.70934497 | BH33: 431.3480226 | BI33: 8228.185264 | BK33: x'e'ex | BS33: 1 | BT33: =BT25 -> 0 | BV33: =MMULT(MMULT(MMULT(BP17:BQ18,BV17:BW18),BS33:BT34),A13:B14) -> 98 | BW33: 1346.288977
BK34: =MMULT(BK30:BK31,BM30:BN30) -> 42.51878229 | BL34: 807.2180276 | BS34: =BT25 -> 0 | BT34: 1 | BV34: 1346.288977 | BW34: 18595.41743
BE35: Obs 6 | BK35: 807.2180276 | BL35: 15325.01424
BE36: x'e' | BF36: ex | BH36: x'e'ex | BS36: Rho for clus 3 | BV36: X'OmegaRhoX for clus 3
BE37: =MMULT(TRANSPOSE(A16:B16),AG16) -> -1.765366214 | BF37: =MMULT(AG16,A16:B16) -> -1.765366214 | BG37: -33.08489658 | BH37: =MMULT(BE37:BE38,BF37:BG37) -> 3.11651787 | BI37: 58.40695862 | BK37: Cluster SE | BS37: 1 | BT37: =BT25 -> 0 | BV37: =MMULT(MMULT(MMULT(BP22:BQ23,BV22:BW23),BS37:BT38),A15:B16) -> 98 | BW37: 1853.013861
BE38: -33.08489658 | BH38: 58.40695862 | BI38: 1094.610381 | BS38: =BT25 -> 0 | BT38: 1 | BV38: 1853.013861 | BW38: 35040.09069
BP39: Exact SE
AX40: X'omega-hatX | BE40: sum x'e'ex over all obs | BK40: D = sum x'e'ex over clusters | BV40: sum X'OmegaRhoX over clusters
AX41: =MMULT(MMULT(TRANSPOSE(A11:B16),AX11:BC16),A11:B16) -> 194.9979892 | AY41: 2117.294593 | BB41: <-- Equivalent --> | BE41: =BH12+BH17+BH22+BH27+BH32+BH37 -> 194.9979892 | BF41: =BI12+BI17+BI22+BI27+BI32+BI37 -> 2117.294593 | BK41: =BK16+BK25+BK34 -> 88.44547596 | BL41: =BL16+BL25+BL34 -> 1496.492364 | BV41: =BV29+BV33+BV37 -> 294 | BW41: =BW29+BW33+BW37 -> 3819.081096
AX42: 2117.294593 | AY42: 28118.73393 | BA42: X'omega-hatX = sum x'e'ex over all obs | BE42: =BH13+BH18+BH23+BH28+BH33+BH38 -> 2117.294593 | BF42: =BI13+BI18+BI23+BI28+BI33+BI38 -> 28118.73393 | BK42: =BK17+BK26+BK35 -> 1496.492364 | BL42: =BL17+BL26+BL35 -> 26295.73377 | BV42: =BV30+BV34+BV38 -> 3819.081096 | BW42: =BW30+BW34+BW38 -> 57805.1881
AU44: Classic SE | AX44: (X'X)-1X'omega-hatX(X'X)-1 | BE44: (X'X)-1(sum x'e'ex)(X'X)-1 | BK44: (X'X)-1D(X'X)-1 | BV44: V(b) = (X'X)-1(sum X'OmegaRhoX)(X'X)-1
AX45: =MMULT(MMULT($AU$11:$AV$12,AX41:AY42),$AU$11:$AV$12) -> 52.46975866 | AY45: -3.207935925 | BB45: <-- Equivalent --> | BE45: =MMULT(MMULT($AU$11:$AV$12,BE41:BF42),$AU$11:$AV$12) -> 52.46975866 | BF45: -3.207935925 | BK45: =MMULT(MMULT($AU$11:$AV$12,BK41:BL42),$AU$11:$AV$12) -> 7.581162337 | BL45: -0.7408569706 | BV45: =MMULT(MMULT(AU11:AV12,BV41:BW42),AU11:AV12) -> 57.60497696 | BW45: -3.805853519
AX46: -3.207935925 | AY46: 0.215059058 | BE46: -3.207935925 | BF46: 0.215059058 | BK46: -0.7408569706 | BL46: 0.08369718181 | BV46: -3.805853519 | BW46: 0.2929817164
AU48: Using RMSE so df included | AY48: =6/4 -> 1.5 | AZ48: n/(n-k) df | BF48: =6/4 -> 1.5 | BG48: n/(n-k) df | BL48: =3/2 -> 1.5 | BM48: c/(c-1) df | BV48: Exact SE(b)
A49: These are the fixed Xs in the sample. | AU49: V(b) = sigma-hat2(X'X)-1 | AX49: V(b) = (n/n-k)(X'X)-1X'omega-hatX(X'X)-1 | BB49: <-- Equivalent --> | BE49: V(b) = (n/n-k)(X'X)-1(sum x'e'ex)(X'X)-1 | BK49: V(b) = (c/c-1)(X'X)-1D(X'X)-1 | BV49: =SQRT(BV45) -> 7.589794263
B50: Corr of pairs of Xs, (xci,xcj) | F50: Step X | G50: 5 | AU50: =$AD$13^2*AU11 -> 57.31048304 | AV50: =$AD$13^2*AV11 -> -3.786396854 | AX50: =$AY$48*AX45 -> 78.70463798 | AY50: =$AY$48*AY45 -> -4.811903888 | BE50: =$BF$48*BE45 -> 78.70463798 | BF50: =$BF$48*BF45 -> -4.811903888 | BK50: =$BL$48*BK45 -> 11.37174351 | BL50: =$BL$48*BL45 -> -1.111285456 | BW50: =SQRT(BW46) -> 0.5412778551
B51: =B11 -> 7.921575009 | C51: =B12 -> 4.726960864 | E51: Draw Xs | F51: rX | G51: 0.7 | AU51: =$AD$13^2*AU12 -> -3.786396854 | AV51: =$AD$13^2*AV12 -> 0.291483906 | AX51: =$AY$48*AX46 -> -4.811903888 | AY51: =$AY$48*AY46 -> 0.322588587 | BE51: =$BF$48*BE46 -> -4.811903888 | BF51: =$BF$48*BF46 -> 0.322588587 | BK51: =$BL$48*BK46 -> -1.111285456 | BL51: =$BL$48*BL46 -> 0.1255457727
B52: 4.726960864 | C52: =B11 -> 7.921575009 | F52: Avg X | G52: 10 | H52: =G52 -> 10 | I52: =G52+$G$50 -> 15 | J52: =I52 -> 15 | K52: =I52+$G$50 -> 20 | L52: =K52 -> 20
B53: 14.75072345 | C53: =B14 -> 12.72456179 | F53: sX | G53: 2 | H53: =G53 -> 2 | I53: 2 | J53: =I53 -> 2 | K53: 2 | L53: =K53 -> 2 | N53: Clicking this button pastes the Xs below as values in cells B11:B16. | AU53: SE(b) | AX53: SE(b) | BE53: SE(b) | BK53: SE(b)
B54: 12.72456179 | C54: =B13 -> 14.75072345 | F54: Cluster ID | G54: Obs 1 | H54: Obs 2 | I54: Obs 3 | J54: Obs 4 | K54: Obs 5 | L54: Obs 6 | M54: X | N54: The Xs below change as the sheet is recalculated (F9). | AU54: =SQRT(AU50) -> 7.570368752 | AX54: =SQRT(AX50) -> 8.871563446 | BE54: =SQRT(BE50) -> 8.871563446 | BK54: =SQRT(BK50) -> 3.372201581
B55: 19.07551405 | C55: =B16 -> 18.74109537 | F55: 1 | G55: 1 | H55: =G51 -> 0.7 | I55: =G51 -> 0.7 | J55: 0 | K55: 0 | L55: 0 | M55: =multivarnormal(2,G55:H56,G52:H52,G53:H53) -> 11.41991805 | AV55: =SQRT(AV51) -> 0.5398924948 | AY55: =SQRT(AY51) -> 0.5679688257 | BB55: <-- Equivalent --> | BF55: =SQRT(BF51) -> 0.5679688257 | BL55: =SQRT(BL51) -> 0.3543243891
B56: 18.74109537 | C56: =B15 -> 19.07551405 | F56: 1 | G56: =G51 -> 0.7 | H56: 1 | I56: =G51 -> 0.7 | J56: 0 | K56: 0 | L56: 0 | M56: 11.50829823
B57: rho-X | C57: =CORREL(B51:B56,C51:C56) -> 0.9137633643 | F57: 2 | G57: =G51 -> 0.7 | H57: =G51 -> 0.7 | I57: 1 | J57: =G51 -> 0.7 | K57: 0 | L57: 0 | M57: =multivarnormal(2,I57:J58,I52:J52,I53:J53) -> 14.39815761 | AU57: Classic SE using LINEST function | AX57: ROBUST SE using LINESTR function | BE57: ROBUST SE using LINESTR function | BK57: CLUSTER SE using LINESTW function
F58: 2 | G58: 0 | H58: 0 | I58: =G51 -> 0.7 | J58: 1 | K58: =G51 -> 0.7 | L58: =G51 -> 0.7 | M58: 15.87023307 | AV58: =AC12 -> 0.5398924948 | AY58: =AC20 -> 0.5679688257 | BF58: =AC20 -> 0.5679688257 | BL58: =AC26 -> 0.3543243891
A59: This workbook has a function that computes the | F59: 3 | G59: 0 | H59: 0 | I59: 0 | J59: =G51 -> 0.7 | K59: 1 | L59: =G51 -> 0.7 | M59: =multivarnormal(2,K59:L60,K52:L52,K53:L53) -> 18.78174449
A60: intra-cluster correlation (ICC) of a variable: | F60: 3 | G60: 0 | H60: 0 | I60: 0 | J60: =G51 -> 0.7 | K60: =G51 -> 0.7 | L60: 1 | M60: 17.23758609
B61: ICC | C61: =ICC(B11:B16,F11:F16) -> 0.9137633643 | D61: Same as cell C57? Check.
AU101: If DGP: e ~ N(0,s), r = 0 | AX101: If DGP: ei ~ N(0,si), r = 0 | BE101: If DGP: ei ~ N(0,si), r = 0 | BK101: If DGP: ei ~ N(0,si), r = 1
AU102: Exact SE | AX102: Exact SE | BE102: Exact SE | BK102: Exact SE
AV103: =SQRT(AV108) -> 0.5412778551 | AY103: =SQRT(AY120) -> 0.5412778551 | BB103: <-- Equivalent --> | BF103: =SQRT(BF150) -> 0.5412778551 | BL103: =SQRT(BL150) -> 0.7487974862
AU104: Assumes sigma constant | AX104: Assumes rho = 0. | BE104: Assumes rho = 0. | BK104: Assumes rho = 1.
AU105: and rho = 0.
AU106: V(b) = sigma2(X'X)-1 | AX106: Sigma2 | BE106: Sigma
AU107: =$G$9^2*AU11 -> 57.60497696 | AV107: =$G$9^2*AV11 -> -3.805853519 | AX107: =G9^2 -> 49 | AY107: 0 | AZ107: 0 | BA107: 0 | BB107: 0 | BC107: 0 | BE107: =G9 -> 7
AU108: =$G$9^2*AU12 -> -3.805853519 | AV108: =$G$9^2*AV12 -> 0.2929817164 | AX108: 0 | AY108: =H9^2 -> 49 | AZ108: 0 | BA108: 0 | BB108: 0 | BC108: 0 | BE108: =H9 -> 7
AX109: 0 | AY109: 0 | AZ109: =I9^2 -> 49 | BA109: 0 | BB109: 0 | BC109: 0 | BE109: =I9 -> 7
AX110: 0 | AY110: 0 | AZ110: 0 | BA110: =J9^2 -> 49 | BB110: 0 | BC110: 0 | BE110: =J9 -> 7
AX111: 0 | AY111: 0 | AZ111: 0 | BA111: 0 | BB111: =K9^2 -> 49 | BC111: 0 | BE111: =K9 -> 7
AX112: 0 | AY112: 0 | AZ112: 0 | BA112: 0 | BB112: 0 | BC112: =L9^2 -> 49 | BE112: =L9 -> 7
AX114: X'sigma2X | BE114: Obs 1 | BK114: Cluster 1
AX115: =MMULT(MMULT(TRANSPOSE(A11:B16),AX107:BC112),A11:B16) -> 294 | AY115: 3819.081096 | BE115: x'e' | BF115: ex | BH115: x'e'ex | BK115: sum x'e' | BM115: sum ex
AX116: 3819.081096 | AY116: 57805.1881 | BE116: =MMULT(TRANSPOSE(A11:B11),BE107) -> 7 | BF116: =MMULT(BE107,A11:B11) -> 7 | BG116: 55.45102507 | BH116: =MMULT(BE116:BE117,BF116:BG116) -> 49 | BI116: 388.1571755 | BK116: =BE116+BE121 -> 14 | BM116: =BF116+BF121 -> 14 | BN116: =BG116+BG121 -> 88.53975111
BE117: 55.45102507 | BH117: 388.1571755 | BI117: 3074.816181 | BK117: =BE117+BE122 -> 88.53975111
AX118: V(b) = (X'X)-1X'sigma2X(X'X)-1
AX119: =MMULT(MMULT($AU$11:$AV$12,AX115:AY116),$AU$11:$AV$12) -> 57.60497696 | AY119: -3.805853519 | BE119: Obs 2 | BK119: x'e'ex
AX120: -3.805853519 | AY120: 0.2929817164 | BE120: x'e' | BF120: ex | BH120: x'e'ex | BK120: =MMULT(BK116:BK117,BM116:BN116) -> 196 | BL120: 1239.556516
BE121: =MMULT(TRANSPOSE(A12:B12),BE108) -> 7 | BF121: =MMULT(BE108,A12:B12) -> 7 | BG121: 33.08872605 | BH121: =MMULT(BE121:BE122,BF121:BG121) -> 49 | BI121: 231.6210823 | BK121: 1239.556516 | BL121: 7839.287527
BE122: 33.08872605 | BH122: 231.6210823 | BI122: 1094.863792
BK123: Cluster 2
BE124: Obs 3 | BK124: sum x'e' | BM124: sum ex
BE125: x'e' | BF125: ex | BH125: x'e'ex | BK125: =BE126+BE131 -> 14 | BM125: =BF126+BF131 -> 14 | BN125: =BG126+BG131 -> 192.3269967
BE126: =MMULT(TRANSPOSE(A13:B13),BE109) -> 7 | BF126: =MMULT(BE109,A13:B13) -> 7 | BG126: 103.2550641 | BH126: =MMULT(BE126:BE127,BF126:BG126) -> 49 | BI126: 722.7854489 | BK126: =BE127+BE132 -> 192.3269967
BE127: 103.2550641 | BH127: 722.7854489 | BI127: 10661.60827
BK128: x'e'ex
BE129: Obs 4 | BK129: =MMULT(BK125:BK126,BM125:BN125) -> 196 | BL129: 2692.577953
BE130: x'e' | BF130: ex | BH130: x'e'ex | BK130: 2692.577953 | BL130: 36989.67364
BE131: =MMULT(TRANSPOSE(A14:B14),BE110) -> 7 | BF131: =MMULT(BE110,A14:B14) -> 7 | BG131: 89.07193253 | BH131: =MMULT(BE131:BE132,BF131:BG131) -> 49 | BI131: 623.5035277
BE132: 89.07193253 | BH132: 623.5035277 | BI132: 7933.809164 | BK132: Cluster 3
BK133: sum x'e' | BM133: sum ex
BE134: Obs 5 | BK134: =BE136+BE141 -> 14 | BM134: =BF136+BF141 -> 14 | BN134: =BG136+BG141 -> 264.7162659
BE135: x'e' | BF135: ex | BH135: x'e'ex | BK135: =BE137+BE142 -> 264.7162659
BE136: =MMULT(TRANSPOSE(A15:B15),BE111) -> 7 | BF136: =MMULT(BE111,A15:B15) -> 7 | BG136: 133.5285983 | BH136: =MMULT(BE136:BE137,BF136:BG136) -> 49 | BI136: 934.7001883
BE137: 133.5285983 | BH137: 934.7001883 | BI137: 17829.88657 | BK137: x'e'ex
BK138: =MMULT(BK134:BK135,BM134:BN134) -> 196 | BL138: 3706.027723
BE139: Obs 6 | BK139: 3706.027723 | BL139: 70074.70143
BE140: x'e' | BF140: ex | BH140: x'e'ex
BE141: =MMULT(TRANSPOSE(A16:B16),BE112) -> 7 | BF141: =MMULT(BE112,A16:B16) -> 7 | BG141: 131.1876676 | BH141: =MMULT(BE141:BE142,BF141:BG141) -> 49 | BI141: 918.313673
BE142: 131.1876676 | BH142: 918.313673 | BI142: 17210.20412
BE144: omega = sum x'e'ex over all obs | BK144: D = sum x'e'ex over clusters
BE145: =BH116+BH121+BH126+BH131+BH136+BH141 -> 294 | BF145: =BI116+BI121+BI126+BI131+BI136+BI141 -> 3819.081096 | BK145: =BK120+BK129+BK138 -> 588 | BL145: =BL120+BL129+BL138 -> 7638.162191
BE146: =BH117+BH122+BH127+BH132+BH137+BH142 -> 3819.081096 | BF146: =BI117+BI122+BI127+BI132+BI137+BI142 -> 57805.1881 | BK146: =BK121+BK130+BK139 -> 7638.162191 | BL146: =BL121+BL130+BL139 -> 114903.6626
BE148: V(b) = (X'X)-1omega(X'X)-1 | BK148: (X'X)-1D(X'X)-1
BE149: =MMULT(MMULT($AU$11:$AV$12,BE145:BF146),$AU$11:$AV$12) -> 57.60497696 | BF149: -3.805853519 | BK149: =MMULT(MMULT($AU$11:$AV$12,BK145:BL146),$AU$11:$AV$12) -> 110.9465604 | BL149: -7.283503034
BE150: -3.805853519 | BF150: 0.2929817164 | BK150: -7.283503034 | BL150: 0.5606976753

Sheet Y (hidden)
A1: This sheet implements the DGP with 5 clusters of 100 obs each.
H2: Scroll right to see results -->
A3: b0 | B3: 0 | C3: se | D3: 7
A4: b1 | B4: 2 | C4: re | D4: =DGP!G7 -> 0 | E4: Click the Update Data button after changing re
A6: n | B6: =B7*B8 -> 100 | C6: total number obs
A7: c | B7: =DGP!D22 -> 25 | C7: number of clusters
A8: nc | B8: =DGP!D23 -> 4 | C8: number obs in a cluster
A10: X0 | B10: X1

Sheet X (hidden)
A1: This sheet controls the distribution of the Xs (average and SD) and correlation of the Xs in a cluster.
A2: Step X | B2: 3 | H2: Scroll right to see the results -->
A3: Avg X | B3: 10 | C3: center of Xs
A4: SD X | B4: 2 | C4: spread of Xs | F4: Click the Update X Data button after changing rx
A5: rX | B5: 0.7 | C5: within cluster correlation of Xs
A6: n | B6: =Y!B6 -> 100 | C6: total number obs
A7: c | B7: =Y!B7 -> 25 | C7: number of clusters
A8: nc | B8: =Y!B8 -> 4 | C8: number obs in a cluster
